{"text_format":"1","workbook":"xlsx","n_sheets":5,"sheets":["Disparo de Emails","Cadastro Clientes","Cadastro Planilha","Tabela Infos","Vencimentos Impostos"],"not_rendered":{"charts":0,"images":0,"macros":1,"external_links":1,"defined_names":8,"comments":0,"pivot_tables":0},"unopened":[],"bounds":{"document_bytes":16777216,"sheet_cells":100000,"rows_first":2000,"rows_last":500,"rows_between":2000,"halvings":0,"cell_chars":16384,"cell_head_chars":4096},"cells_cut":0,"cells_raw":0,"read":"whole","date_system":"1900"}

{"sheet":"Disparo de Emails","index":0,"n_rows":26,"n_cols":12,"rows_kept":26,"cut":false,"hidden":false,"merged":[[20,5,20,8],[0,5,0,9],[11,0,11,1],[10,0,10,1],[3,4,4,4],[3,5,4,9],[9,5,9,8],[10,5,10,8],[13,5,13,8],[16,5,16,8],[18,5,18,8],[1,4,2,4],[1,5,2,9],[12,5,12,8],[15,5,15,8],[5,0,5,1]]}
["Status:",{"$f":"IF(B20=\"Fim\",\"Parar Macro\",\"\")","v":""},null,"","Empresa:",{"$f":"IF(OR(B20=0,B20=\"Fim\"),\"\",IF(B7<>\"\",VLOOKUP(B20,$A$7:$B$9,2,0),VLOOKUP(B20,'Cadastro Clientes'!$A$5:$B$104,2,0)))","v":"4L SERVIÇOS E MANUTENÇÕES LTDA"},null,null,null,null,null,"Mês/Ano:"]
["Envio para:",{"$f":"IF(OR(B20=\"Fim\",B20=0),\"\",IF(OR(AND('Tabela Infos'!K17=0,'Tabela Infos'!H31=\"\"),'Tabela Infos'!H31=\"Não há faturamento informado neste mês, portante não há geração de DAS.\"),\"ronaldo.marques@abaci.com.br\",VLOOKUP(F1,'Cadastro Clientes'!$B$5:$F$1048576,3,0)))","v":"ronaldo.marques@abaci.com.br"},null,"","Tipo E-mail:","Simples + CPRB",null,null,null,null,null,"2018-10-01"]
["Com cópia p/:",{"$f":"IF(OR(B20=\"Fim\",B20=0),\"\",IF(AND('Tabela Infos'!K17=0,'Tabela Infos'!H31=\"\"),\"\",VLOOKUP(F1,'Cadastro Clientes'!$B$5:$F$1048576,4,0)))","v":""},null,""]
["Assunto:",{"$f":"IF(OR(B20=\"Fim\",B20=0),\"\",IF(VLOOKUP(F2,'Cadastro Planilha'!$H$4:$K$7,3,0)=\"\",\"\",IF(AND('Tabela Infos'!K17=0,'Tabela Infos'!H31=\"\"),\"E-mail não enviado - \"&VLOOKUP(F2,'Cadastro Planilha'!$H$4:$K$7,3,0)&\" > \"&F1,VLOOKUP(F2,'Cadastro Planilha'!$H$4:$K$7,3,0))))","v":"E-mail não enviado - Fechamento de Impostos - Outubro/2018 > 4L SERVIÇOS E MANUTENÇÕES LTDA"},"","","Pasta Cliente:",{"$f":"IF(F1=\"\",\"\",VLOOKUP(F1,'Cadastro Clientes'!$B$5:$F$1048576,5,0)&\"\\\"&VLOOKUP(F2,'Cadastro Planilha'!$H$4:$I$8,2,0)&\"\\\"&YEAR(L2)&\"\\\"&IF(MONTH(L2)<10,\"0\"&MONTH(L2),MONTH(L2))&\".\"&YEAR(L2))","v":{"$error":"#N/A"}}]
[null,null,null,""]
["Disparo de E-mails Especificos",null,"","",null,null,null,null,null,null,""]
[1,"4L SERVIÇOS E MANUTENÇÕES LTDA","","",null,null,null,null,null,null,""]
[2,null,"","",null,{"$f":"IF(F1=\"\",\"\",VLOOKUP(F1,'Cadastro Clientes'!$B$5:$F$1048576,2,0))&IF(F1=\"\",\"Olá,\",\",\"&IF(HOUR(NOW())<=12,\" bom dia.\",IF(HOUR(NOW())<=19,\" boa tarde.\",\"boa noite.\")))","v":{"$error":"#N/A"}},null,null,null,null,""]
[3,null,"","",null,null,null,null,null,null,""]
[null,null,"","",null,{"$f":"IF(OR(B20=\"Fim\",B20=0),\"\",IF(AND(F2='Cadastro Planilha'!$H$5,'Tabela Infos'!H31<>\"\"),\"Informativo:\",\"Segue em anexo, referente ao mês de \"&VLOOKUP(MONTH(L2),'Cadastro Planilha'!$D$4:$F$15,2,0)&\"/\"&YEAR(L2)&\", os seguintes documentos:\"))","v":"Segue em anexo, referente ao mês de Outubro/2018, os seguintes documentos:"},null,null,null,null,""]
["Configurações do E-mail:",null,"","",null,{"$f":"IF(OR(B20=\"Fim\",B20=0),\"\",IF(AND(F2='Cadastro Planilha'!$H$5,'Tabela Infos'!H31<>\"\"),'Tabela Infos'!H31,TRIM('Tabela Infos'!L4)))","v":"Não foram encontrados os arquivos procurados na pasta indicada. Por favor verifique."},null,null,null,null,""]
["Definação das células da msg.",null,"","",null,null,null,null,null,null,""]
["Da Linha:",7,"","",null,{"$f":"IF(OR(B20=\"Fim\",B20=0),\"\",IF(AND(F2='Cadastro Planilha'!$H$5,'Tabela Infos'!H31<>\"\"),\"\",IF(OR(F2='Cadastro Planilha'!$H$4,F2='Cadastro Planilha'!$H$5),\"Vencimento das Guias:\",\"\")))","v":"Vencimento das Guias:"},null,null,null,null,""]
["Até Linha:",25,null,"",null,{"$f":"IF(OR(B20=\"Fim\",B20=0),\"\",IF(AND(F2='Cadastro Planilha'!$H$5,'Tabela Infos'!H31<>\"\"),\"\",IF(OR(F2='Cadastro Planilha'!$H$4,F2='Cadastro Planilha'!$H$5),'Tabela Infos'!T4,\"\")))","v":"Não há vencimentos para as guias anexadas neste e-mail."},null,null,null,null,""]
["Código Linha",{"$f":"B13&\":\"&B14","v":"7:25"},null,"",null,null,null,null,null,null,""]
["Da Coluna:","E",null,"",null,{"$f":"IF(VLOOKUP(F2,'Cadastro Planilha'!$H$4:$M$8,4,0)=\"\",\"\",VLOOKUP(F2,'Cadastro Planilha'!$H$4:$M$8,4,0))","v":"Observação Importante:"},null,null,null,null,""]
["Até Coluna:","J",null,"",null,{"$f":"IF(F1=\"\",\"Cliente não informado\",IF(VLOOKUP(F2,'Cadastro Planilha'!$H$4:$M$8,5,0)=\"\",\"\",VLOOKUP(F2,'Cadastro Planilha'!$H$4:$M$8,5,0)))","v":"Em Out/2018 a sua empresa ficou na 4ª faixa do Simples. Para Nov/2018 continuará na 4ª Faixa. E se este mês você faturar até R$ 750.490,74 permanecerá na 4ª Faixa em Dez/2018.\n\nPara emissão de notas fiscais a partir de 01/11/2018, por favor considerar:\nAnexo II = Efetiva 9,09%\nAnexo IV = Efetiva 10,28% - ISS 4,11%\nAnexo V = Efetiva 18,9% - ISS 3,97%"},null,null,null,null,""]
["Código Range",{"$f":"B16&B13&\":\"&B17&B14","v":"E7:J25"},null,"",null,null,null,null,null,null,""]
["Máximo:",{"$f":"IF(B7<>\"\",COUNTA(B7:B9),COUNTA('Cadastro Clientes'!B5:B1048576))","v":1},null,"",null,{"$f":"IF(VLOOKUP(F2,'Cadastro Planilha'!$H$4:$M$8,6,0)=\"\",\"\",VLOOKUP(F2,'Cadastro Planilha'!$H$4:$M$8,6,0))","v":"Caso já tenham emitido notas fiscais neste mês (Novembro/2018) não é necessário o cancelamento das mesmas."},null,null,null,null,""]
["Contagem:",{"$f":"IF(SUM(B22:B121)>B19,\"Fim\",SUM(B22:B121))","v":1},null,null,null,null,null,null,null,null,""]
[null,null,null,null,null,"Qualquer dúvida com relação aos documentos ou valores enviados neste e-mail, por favor entre em contato conosco.",null,null,null,null,""]
["Registros E-mails:",1,null,null,null,null,null,null,null,null,""]
[null,null,null,null,null,"Atenciosamente,",null,null,null,null,""]
[null,null,null,null,null,null,null,null,null,null,""]
[null,null,null,null,null,null,null,null,null,null,""]
[null,null,null,null,null,null,null,null,null,null,""]

{"sheet":"Cadastro Clientes","index":1,"n_rows":104,"n_cols":6,"rows_kept":104,"cut":false,"hidden":false,"merged":[]}
["Cadastro de Informações de Envio"]
[]
[]
["Nº","Nome de Clientes/Destinatário (Razão Social para Empresas)","Nome de Chamada","E-mail (destinatário)","E-mail (em cópia)","Pasta na Rede para Localização de Arquivos"]
[1,"EMPRESA 123","Rodrigo","rodrigo.luiz@davinciec.com.br","","Y:\\Lista de Destinatários\\EMPRESA 123"]
[2,"EMPRESA 124","André","andre@mixcon.com.br","","Y:\\Lista de Destinatários\\EMPRESA 124"]
[3,"EMPRESA 125","Adolfo","perdizes@helphome.srv.br","","Y:\\Lista de Destinatários\\EMPRESA 125"]
[4,"EMPRESA 126","Adevanir/Estevan","estevan.pavarin@helphome.srv.br","financeiro@helphome.srv.br","Y:\\Lista de Destinatários\\EMPRESA 126"]
[5,"EMPRESA 127","Edson","el_affonso@hotmail.com","","Y:\\Lista de Destinatários\\EMPRESA 127"]
[6,"EMPRESA 128","Vilmar","vilmar.costa81@gmail.com ","","Y:\\Lista de Destinatários\\EMPRESA 128"]
[7,"EMPRESA 129","Cassiano","cassianocastanho@yahoo.com.br","","Y:\\Lista de Destinatários\\EMPRESA 129"]
[8,"EMPRESA 130","Bruce","umarizal@helphome.srv.br","irangemak@hotmail.com","Y:\\Lista de Destinatários\\EMPRESA 130"]
[9,"EMPRESA 131","Daniela","dbcaumo@gmail.com","","Y:\\Lista de Destinatários\\EMPRESA 131"]
[10,"EMPRESA 132","Juliana","jardimpaulista@helphome.srv.br","","Y:\\Lista de Destinatários\\EMPRESA 132"]
[11,"EMPRESA 133","Eduardo","centromaringa@helphome.srv.br","","Y:\\Lista de Destinatários\\EMPRESA 133"]
[12,"EMPRESA 134","Diego/Paulo","curitiba@lepingue.com.br","","Y:\\Lista de Destinatários\\EMPRESA 134"]
[13,"EMPRESA 135","Thiago","contato@duarteabreu.com.br","","Y:\\Lista de Destinatários\\EMPRESA 135"]
[14,"EMPRESA 136","Elaine","comercial@smartsolucoes.eng.br","","Y:\\Lista de Destinatários\\EMPRESA 136"]
[15,"EMPRESA 137","Laercio","diretoria@ecosete.com.br","","Y:\\Lista de Destinatários\\EMPRESA 137"]
[16,"EMPRESA 138","Adevanir/Estevan","financeiro@helphome.srv.br","estevan.pavarin@helphome.srv.br","Y:\\Lista de Destinatários\\EMPRESA 138"]
[17,"EMPRESA 139","Maicon/Matheus","matheusbenitesetc@gmail.com","maiconfanka2@yahoo.com.br","Y:\\Lista de Destinatários\\EMPRESA 139"]
[18,"EMPRESA 140","Clayton","anderson.tavares@abaci.com.br","","Y:\\Lista de Destinatários\\EMPRESA 140"]
[19,"EMPRESA 141","Felipe/Roberta","comercial.b@helphome.srv.br","engenharia.b@helphome.srv.br","Y:\\Lista de Destinatários\\EMPRESA 141"]
[20,"EMPRESA 142","Rodrigo","rodrigo1983.ademilar@gmail.com","","Y:\\Lista de Destinatários\\EMPRESA 142"]
[21,"EMPRESA 143","Angelo","angelo@fluasenergia.com.br","","Y:\\Lista de Destinatários\\EMPRESA 143"]
[22,"EMPRESA 144","Diego","'diego@cfgengenharia.com.br'","","Y:\\Lista de Destinatários\\EMPRESA 144"]
[23,"EMPRESA 145","Guilherme","higienopolis@helphome.srv.br","","Y:\\Lista de Destinatários\\EMPRESA 145"]
[24,"EMPRESA 146","Guilherme","centrocanoas@helphome.srv.br","","Y:\\Lista de Destinatários\\EMPRESA 146"]
[25,"EMPRESA 147","Gabrielle","gcardon@hotmail.com","","Y:\\Lista de Destinatários\\EMPRESA 147"]
[26,"EMPRESA 148","Célio","penha@helphome.srv.br","","Y:\\Lista de Destinatários\\EMPRESA 148"]
[27,"EMPRESA 149","Jeferson","santamaria@helphome.srv.br","","Y:\\Lista de Destinatários\\EMPRESA 149"]
[28,"EMPRESA 150","Anderson/Nilton","ademilar@creditoparaimoveis.com.br","anderson.tavares@abaci.com.br","Y:\\Lista de Destinatários\\EMPRESA 150"]
[29,"EMPRESA 151","Alexandro","alexandrogrube@gmail.com"," ingapar@helphome.srv.br","Y:\\Lista de Destinatários\\EMPRESA 151"]
[30,"EMPRESA 152","Guilherme","pontanegra@helphome.srv.br","","Y:\\Lista de Destinatários\\EMPRESA 152"]
[31,"EMPRESA 153","Flávio","colombo-maracana@helphome.srv.br","","Y:\\Lista de Destinatários\\EMPRESA 153"]
[32,"EMPRESA 154","Áurea","aurea.investimentoconcreto@gmail.com","","Y:\\Lista de Destinatários\\EMPRESA 154"]
[33,"EMPRESA 155","José Borges","sbc-centro@helphome.srv.br","","Y:\\Lista de Destinatários\\EMPRESA 155"]
[34,"EMPRESA 156","Christian","recreio@helphome.srv.br","","Y:\\Lista de Destinatários\\EMPRESA 156"]
[35,"EMPRESA 157","José Cester","zecester@gmail.com","","Y:\\Lista de Destinatários\\EMPRESA 157"]
[36,"EMPRESA 158","Beto/Itamar","itam.costa@gmail.com ","perozza@gmail.com","Y:\\Lista de Destinatários\\EMPRESA 158"]
[37,"EMPRESA 159","Diego/Leandro","centrobc@helphome.srv.br ","leandro.gfranca@gmail.com","Y:\\Lista de Destinatários\\EMPRESA 159"]
[38,"EMPRESA 160","Bruno/Camila","larosaberger@gmail.com","","Y:\\Lista de Destinatários\\EMPRESA 160"]
[39,"EMPRESA 161","Renata","jardimdasamericas@helphome.srv.br","","Y:\\Lista de Destinatários\\EMPRESA 161"]
[40,"EMPRESA 162","Roger","centrocascavel@helphome.srv.br","","Y:\\Lista de Destinatários\\EMPRESA 162"]
[41,"EMPRESA 163","Sérgio","sergio.cabral@modernare.com.br",null,"Y:\\Lista de Destinatários\\EMPRESA 163"]
[42,"EMPRESA 164","Patrik","patrikmoraes@yahoo.com.br","","Y:\\Lista de Destinatários\\EMPRESA 164"]
[43,"EMPRESA 165","Marilise","mari@mpmarketing.com.br","","Y:\\Lista de Destinatários\\EMPRESA 165"]
[44,"EMPRESA 166","Elicarlos/Guilherme","santoamaro@helphome.srv.br","","Y:\\Lista de Destinatários\\EMPRESA 166"]
[45,"EMPRESA 167","Daniela","moema@helphome.srv.br","","Y:\\Lista de Destinatários\\EMPRESA 167"]
[46,"EMPRESA 168","Eliane","elianeademilar@hotmail.com","","Y:\\Lista de Destinatários\\EMPRESA 168"]
[47,"EMPRESA 169","Reinaldo","engtotito@uol.com.br","","Y:\\Lista de Destinatários\\EMPRESA 169"]
[48,"EMPRESA 170","Cristiano","cvrprado@gmail.com","","Y:\\Lista de Destinatários\\EMPRESA 170"]
[49,"EMPRESA 171","Camila/Rodrigo","comercialpelotas@helphome.srv.br","zonasul-pelotas@helphome.srv.br","Y:\\Lista de Destinatários\\EMPRESA 171"]
[50,"EMPRESA 172","Lucas","lucas.elerson@gmail.com","","Y:\\Lista de Destinatários\\EMPRESA 172"]
[51,"EMPRESA 173","Rosemeri","rosemeri.suaretz@a1.ind.br","","Y:\\Lista de Destinatários\\EMPRESA 173"]
[52,"EMPRESA 174","Rafael/Roberto","betovella@gmail.com","","Y:\\Lista de Destinatários\\EMPRESA 174"]
[53,"EMPRESA 175","Salomão","luis.salo@hotmail.com","","Y:\\Lista de Destinatários\\EMPRESA 175"]
[54,"EMPRESA 176","Gisela/Renato","sobradinho@helphome.srv.br","","Y:\\Lista de Destinatários\\EMPRESA 176"]
[55,"EMPRESA 177","Leandro","leandro_fontes2@hotmail.com","","Y:\\Lista de Destinatários\\EMPRESA 177"]
[56,"EMPRESA 178","Rosângela","adm@admsublime.com.br","contato@admsublime.com.br","Y:\\Lista de Destinatários\\EMPRESA 178"]
[57,"EMPRESA 179","Alberto","itam.costa@gmail.com","","Y:\\Lista de Destinatários\\EMPRESA 179"]
[58,"EMPRESA 180","Thiago","thiagorielli@grupoa6.com.br","thiago.ademilar@trrcreditoimobiliario.com","Y:\\Lista de Destinatários\\EMPRESA 180"]
[59,"EMPRESA 181","Bruno","bruno.truppel@gmail.com","","Y:\\Lista de Destinatários\\EMPRESA 181"]
[60,"EMPRESA 182","Benedito/Rodrigo","benedito.ferreira@ueng.com.br","rodrigo.huppes@ueng.com.br","Y:\\Lista de Destinatários\\EMPRESA 182"]
[61,"EMPRESA 183","Vanessa","ribeiraocomercial@helphome.srv.br","","Y:\\Lista de Destinatários\\EMPRESA 183"]
[62,"EMPRESA 184","Sérgio","sergio.cabral@modernare.com.br",null,"Y:\\Lista de Destinatários\\EMPRESA 184"]
[63,"EMPRESA 185","Wilber","bueno@helphome.srv.br","wilbermg@yahoo.com.br","Y:\\Lista de Destinatários\\EMPRESA 185"]
[64,"EMPRESA 186","Elaine","comercial@smartsolucoes.eng.br",null,"Y:\\Lista de Destinatários\\EMPRESA 186"]
[65,"EMPRESA 187","Adevanir/Estevan","estevan.pavarin@helphome.srv.br","financeiro@helphome.srv.br","Y:\\Lista de Destinatários\\EMPRESA 187"]
[66,"EMPRESA 188","Sandra","sandrastein.ademilar@gmail.com",null,"Y:\\Lista de Destinatários\\EMPRESA 188"]
[67,"EMPRESA 189","Thiago","centropg@helphome.srv.br",null,"Y:\\Lista de Destinatários\\EMPRESA 189"]
[68,"EMPRESA 190","Alex","alexpereira.ademilar@gmail.com",null,"Y:\\Lista de Destinatários\\EMPRESA 190"]
[69,"EMPRESA 191","Anderson/Ronaldo","anderson.tavares@abaci.com.br","ronaldo.marques@abaci.com.br","Y:\\Lista de Destinatários\\EMPRESA 191"]
[70,"EMPRESA 192","Gilian/Giselle","giliandias@yahoo.com.br","contato@exline.com.br","Y:\\Lista de Destinatários\\EMPRESA 192"]
[71,"EMPRESA 193","Wellington","wellington.ademilar@gmail.com",null,"Y:\\Lista de Destinatários\\EMPRESA 193"]
[72,"EMPRESA 194","Vitor","copacabana@helphome.srv.br",null,"Y:\\Lista de Destinatários\\EMPRESA 194"]
[73,"EMPRESA 195","Waldyr","campobelosp@helphome.srv.br",null,"Y:\\Lista de Destinatários\\EMPRESA 195"]
[74,"EMPRESA 196","Lucas","lucas.ademilarbatel@gmail.com",null,"Y:\\Lista de Destinatários\\EMPRESA 196"]
[75,"EMPRESA 197","Ramon","ramondesp@gmail.com",null,"Y:\\Lista de Destinatários\\EMPRESA 197"]
[76,"EMPRESA 198","Regina","rgomes13@hotmail.com",null,"Y:\\Lista de Destinatários\\EMPRESA 198"]
[77,"EMPRESA 199","Laercio","laerciojr@gmail.com",null,"Y:\\Lista de Destinatários\\EMPRESA 199"]
[78]
[79]
[80]
[81]
[82]
[83]
[84]
[85]
[86]
[87]
[88]
[89]
[90]
[91]
[92]
[93]
[94]
[95]
[96]
[97]
[98]
[99]
[100]

{"sheet":"Cadastro Planilha","index":2,"n_rows":34,"n_cols":33,"rows_kept":34,"cut":false,"hidden":false,"merged":[[9,7,9,8]]}
["Cadastro Utilizado nas Planilhas",null,null,null,null,null,null,null,null,null,null,null,null,"Mais Anexos >>>>>"]
[]
[null,"Mês de Apuração",null,"Mês","Nome","Abreviado",null,"Tipos (opções) de Envio:","Pasta na Rede","Assunto E-mail","Chamada Caixa Secundária","Mensagem 1","Mensagem 2","Anexo 1:","Anexo 2:","Anexo 3:","Anexo 4:","Anexo 5:","Anexo 6:","Anexo 7:","Anexo 8:","Anexo 9:","Anexo 10:","Anexo 11:","Anexo 12:","Anexo 13:","Anexo 14:","Anexo 15:","Anexo 16:","Anexo 17:","Anexo 18:","Anexo 19:","Anexo 20:"]
[null,"2018-12-01",null,1,"Janeiro","Jan",null,"RH - Fechamento Mês","Folha de Pagto",{"$f":"\"Fechamento da Folha de Pagamento - \"&VLOOKUP(MONTH('Disparo de Emails'!$L$2),'Cadastro Planilha'!$D$4:$F$15,2,0)&\"/\"&YEAR('Disparo de Emails'!$L$2)","v":"Fechamento da Folha de Pagamento - Outubro/2018"},"Lembretes e Observações:",{"$f":"\"> Pagamentos Salariais devem ser feitos até no máximo o 5º dia útil (\"&DAY(VLOOKUP('Disparo de Emails'!$L$2,'Vencimentos Impostos'!$B$4:$H$15,7,0))&\"/\"&VLOOKUP(MONTH(VLOOKUP('Disparo de Emails'!$L$2,'Vencimentos Impostos'!$B$4:$H$15,7,0)),$D$4:$F$15,2,0)&\" - \"&VLOOKUP(WEEKDAY(VLOOKUP('Disparo de Emails'!$L$2,'Vencimentos Impostos'!$B$4:$H$15,7,0)),dia_semana,2,0)&\").\"","v":"> Pagamentos Salariais devem ser feitos até no máximo o 5º dia útil (8/Novembro - Quinta-feira)."}," > Evite fornecer VALE TRANSPORTE, VALE ALIMENTAÇÃO OU REFEIÇÃO em dinheiro ao seu colaborador, essa prática pode ser considerada salário \"in natura\" posteriormente.","Holerite","Guia INSS","Guia FGTS","Guia IRRF","Folha Ponto","Recibo de Vale Transporte","Recibo de Vale Alimentação","Resumo Folha de Pagamento","SEFIP","Recibo de Pagamento a Autônomo - RPA","Guia INSS Complementar","Guia FGTS Complementar","Empregada Doméstica","Guia INSS Tomadores","Guia FGTS Tomadores"]
[null,"2018-11-01",null,2,"Fevereiro","Fev",null,"Simples + CPRB","Cálculo de Impostos",{"$f":"\"Fechamento de Impostos - \"&VLOOKUP(MONTH('Disparo de Emails'!$L$2),'Cadastro Planilha'!$D$4:$F$15,2,0)&\"/\"&YEAR('Disparo de Emails'!$L$2)","v":"Fechamento de Impostos - Outubro/2018"},"Observação Importante:",{"$f":"IFERROR(VLOOKUP('Disparo de Emails'!L2&'Disparo de Emails'!F1,'[1]Banco de Dados'!$B17:$Q5016,16,0),\"\")","v":"Em Out/2018 a sua empresa ficou na 4ª faixa do Simples. Para Nov/2018 continuará na 4ª Faixa. E se este mês você faturar até R$ 750.490,74 permanecerá na 4ª Faixa em Dez/2018.\n\nPara emissão de notas fiscais a partir de 01/11/2018, por favor considerar:\nAnexo II = Efetiva 9,09%\nAnexo IV = Efetiva 10,28% - ISS 4,11%\nAnexo V = Efetiva 18,9% - ISS 3,97%"},{"$f":"\"Caso já tenham emitido notas fiscais neste mês (\"&VLOOKUP(IF(MONTH('Disparo de Emails'!L2)=12,1,MONTH('Disparo de Emails'!L2)+1),'Cadastro Planilha'!$D$4:$F$15,2,0)&\"/\"&IF(MONTH('Disparo de Emails'!L2)=12,YEAR('Disparo de Emails'!L2)+1,YEAR('Disparo de Emails'!L2))&\") não é necessário o cancelamento das mesmas.\"","v":"Caso já tenham emitido notas fiscais neste mês (Novembro/2018) não é necessário o cancelamento das mesmas."},"DAS do Simples Nacional","Contribuição Previdenciária sobre Receita Bruta - CPRB"]
[null,"2018-10-01",null,3,"Março","Mar",null,"RH - Adiantamento da Folha","Folha de Pagto",{"$f":"\"Adiantamento da Folha de Pagamento - \"&VLOOKUP(MONTH('Disparo de Emails'!$L$2),'Cadastro Planilha'!$D$4:$F$15,2,0)&\"/\"&YEAR('Disparo de Emails'!$L$2)","v":"Adiantamento da Folha de Pagamento - Outubro/2018"},"Lembrete:",{"$f":"\"> Pagamentos de adiantamentos devem ser feitos até o dia \"&DAY(VLOOKUP('Disparo de Emails'!$L$2,'Vencimentos Impostos'!$B$4:$I$15,8,0))&\"/\"&VLOOKUP(MONTH(VLOOKUP('Disparo de Emails'!$L$2,'Vencimentos Impostos'!$B$4:$I$15,8,0)),$D$4:$F$15,2,0)&\" (\"&VLOOKUP(WEEKDAY(VLOOKUP('Disparo de Emails'!$L$2,'Vencimentos Impostos'!$B$4:$I$15,8,0)),dia_semana,2,0)&\").\"","v":"> Pagamentos de adiantamentos devem ser feitos até o dia 19/Outubro (Sexta-feira)."},null,"Holerite Adiantamento Salarial","Resumo Adiantamento Folha de Pagamento"]
[null,"2018-09-01",null,4,"Abril","Abr",null,"RH - 1ª Parcela 13º Salário","Folha de Pagto","Folha de Pagamento - 1ª Parcela do 13º Salário","Lembrete:",{"$f":"\"> Pagamentos da 1ª parcela do 13º salário devem ser feitos até o dia \"&DAY(VLOOKUP('Disparo de Emails'!$L$2,'Vencimentos Impostos'!$B$4:$K$15,8,0))&\"/\"&VLOOKUP(MONTH(VLOOKUP('Disparo de Emails'!$L$2,'Vencimentos Impostos'!$B$4:$K$15,8,0)),$D$4:$F$15,2,0)&\" (\"&VLOOKUP(WEEKDAY(VLOOKUP('Disparo de Emails'!$L$2,'Vencimentos Impostos'!$B$4:$K$15,8,0)),dia_semana,2,0)&\").\"","v":"> Pagamentos da 1ª parcela do 13º salário devem ser feitos até o dia 19/Outubro (Sexta-feira)."},null,"Holerite 1ª Parcela - 13º Salário"]
[null,"2018-08-01",null,5,"Maio","Mai",null,"RH - 2ª Parcela 13º Salário","Folha de Pagto","Folha de Pagamento - 2ª Parcela do 13º Salário","Lembrete:",{"$f":"\"> Pagamentos da 2ª parcela do 13º salário devem ser feitos até o dia \"&DAY(VLOOKUP('Disparo de Emails'!$L$2,'Vencimentos Impostos'!$B$4:$K$15,8,0))&\"/\"&VLOOKUP(MONTH(VLOOKUP('Disparo de Emails'!$L$2,'Vencimentos Impostos'!$B$4:$K$15,8,0)),$D$4:$F$15,2,0)&\" (\"&VLOOKUP(WEEKDAY(VLOOKUP('Disparo de Emails'!$L$2,'Vencimentos Impostos'!$B$4:$K$15,8,0)),dia_semana,2,0)&\").\"","v":"> Pagamentos da 2ª parcela do 13º salário devem ser feitos até o dia 19/Outubro (Sexta-feira)."},0,"Holerite 2ª Parcela - 13º Salário","Guia INSS - 13º Salário","Guia FGTS - 13º Salário"]
[null,"2018-07-01",null,6,"Junho","Jun"]
[null,"2018-06-01",null,7,"Julho","Jul",null,"Cadastro de Nome de Arquivos"]
[null,"2018-05-01",null,8,"Agosto","Ago",null,"Holerite",{"$f":"\"Holerite Mensal - \"&IF(MONTH('Disparo de Emails'!$L$2)<10,\"0\"&MONTH('Disparo de Emails'!$L$2),MONTH('Disparo de Emails'!$L$2))&\".\"&YEAR('Disparo de Emails'!$L$2)&\".pdf\"","v":"Holerite Mensal - 10.2018.pdf"}]
[null,"2018-04-01",null,9,"Setembro","Set",null,"Holerite Adiantamento Salarial",{"$f":"\"Holerite Adto - \"&IF(MONTH('Disparo de Emails'!$L$2)<10,\"0\"&MONTH('Disparo de Emails'!$L$2),MONTH('Disparo de Emails'!$L$2))&\".\"&YEAR('Disparo de Emails'!$L$2)&\".pdf\"","v":"Holerite Adto - 10.2018.pdf"}]
[null,"2018-03-01",null,10,"Outubro","Out",null,"Guia INSS",{"$f":"\"GPS - \"&IF(MONTH('Disparo de Emails'!$L$2)<10,\"0\"&MONTH('Disparo de Emails'!$L$2),MONTH('Disparo de Emails'!$L$2))&\".\"&YEAR('Disparo de Emails'!$L$2)&\".pdf\"","v":"GPS - 10.2018.pdf"}]
[null,"2018-02-01",null,11,"Novembro","Nov",null,"Guia FGTS",{"$f":"\"GRF - \"&IF(MONTH('Disparo de Emails'!$L$2)<10,\"0\"&MONTH('Disparo de Emails'!$L$2),MONTH('Disparo de Emails'!$L$2))&\".\"&YEAR('Disparo de Emails'!$L$2)&\".pdf\"","v":"GRF - 10.2018.pdf"}]
[null,"2018-01-01",null,12,"Dezembro","Dez",null,"Guia IRRF",{"$f":"\"IRRF - \"&IF(MONTH('Disparo de Emails'!$L$2)<10,\"0\"&MONTH('Disparo de Emails'!$L$2),MONTH('Disparo de Emails'!$L$2))&\".\"&YEAR('Disparo de Emails'!$L$2)&\".pdf\"","v":"IRRF - 10.2018.pdf"}]
[null,"2017-12-01",null,null,null,null,null,"Folha Ponto",{"$f":"\"Folha Ponto - \"&IF(MONTH('Disparo de Emails'!$L$2)+1<10,\"0\"&MONTH('Disparo de Emails'!$L$2)+1,MONTH('Disparo de Emails'!$L$2)+1)&\".\"&YEAR('Disparo de Emails'!$L$2)&\".pdf\"","v":"Folha Ponto - 11.2018.pdf"}]
[null,"2017-11-01",null,"Dia","Nome",null,null,"Recibo de Vale Transporte",{"$f":"\"Recibo de Vale Transporte - \"&IF(MONTH('Disparo de Emails'!$L$2)+1<10,\"0\"&MONTH('Disparo de Emails'!$L$2)+1,MONTH('Disparo de Emails'!$L$2)+1)&\".\"&YEAR('Disparo de Emails'!$L$2)&\".pdf\"","v":"Recibo de Vale Transporte - 11.2018.pdf"}]
[null,"2017-10-01",null,1,"Domingo",null,null,"Recibo de Vale Alimentação",{"$f":"\"Recibo de Vale Alimentação - \"&IF(MONTH('Disparo de Emails'!$L$2)+1<10,\"0\"&MONTH('Disparo de Emails'!$L$2)+1,MONTH('Disparo de Emails'!$L$2)+1)&\".\"&YEAR('Disparo de Emails'!$L$2)&\".pdf\"","v":"Recibo de Vale Alimentação - 11.2018.pdf"}]
[null,"2017-09-01",null,2,"Segunda-feira",null,null,"Resumo Folha de Pagamento",{"$f":"\"Resumo Folha Mensal - \"&IF(MONTH('Disparo de Emails'!$L$2)<10,\"0\"&MONTH('Disparo de Emails'!$L$2),MONTH('Disparo de Emails'!$L$2))&\".\"&YEAR('Disparo de Emails'!$L$2)&\".pdf\"","v":"Resumo Folha Mensal - 10.2018.pdf"}]
[null,"2017-08-01",null,3,"Terça-feira",null,null,"Resumo Adiantamento Folha de Pagamento",{"$f":"\"Resumo Adiantamento - \"&IF(MONTH('Disparo de Emails'!$L$2)<10,\"0\"&MONTH('Disparo de Emails'!$L$2),MONTH('Disparo de Emails'!$L$2))&\".\"&YEAR('Disparo de Emails'!$L$2)&\".pdf\"","v":"Resumo Adiantamento - 10.2018.pdf"}]
[null,"2017-07-01",null,4,"Quarta-feira",null,null,"SEFIP",{"$f":"\"Sefip - \"&IF(MONTH('Disparo de Emails'!$L$2)<10,\"0\"&MONTH('Disparo de Emails'!$L$2),MONTH('Disparo de Emails'!$L$2))&\".\"&YEAR('Disparo de Emails'!$L$2)&\".zip\"","v":"Sefip - 10.2018.zip"}]
[null,"2017-06-01",null,5,"Quinta-feira",null,null,"DAS do Simples Nacional",{"$f":"\"DAS - \"&IF(MONTH('Disparo de Emails'!$L$2)<10,\"0\"&MONTH('Disparo de Emails'!$L$2),MONTH('Disparo de Emails'!$L$2))&\".\"&YEAR('Disparo de Emails'!$L$2)&\".pdf\"","v":"DAS - 10.2018.pdf"}]
[null,"2017-05-01",null,6,"Sexta-feira",null,null,"Contribuição Previdenciária sobre Receita Bruta - CPRB",{"$f":"\"CPRB - \"&IF(MONTH('Disparo de Emails'!$L$2)<10,\"0\"&MONTH('Disparo de Emails'!$L$2),MONTH('Disparo de Emails'!$L$2))&\".\"&YEAR('Disparo de Emails'!$L$2)&\".pdf\"","v":"CPRB - 10.2018.pdf"}]
[null,"2017-04-01",null,7,"Sábado",null,null,"Recibo de Pagamento a Autônomo - RPA",{"$f":"\"RPA - \"&IF(MONTH('Disparo de Emails'!$L$2)<10,\"0\"&MONTH('Disparo de Emails'!$L$2),MONTH('Disparo de Emails'!$L$2))&\".\"&YEAR('Disparo de Emails'!$L$2)&\".pdf\"","v":"RPA - 10.2018.pdf"}]
[null,"2017-03-01",null,null,null,null,null,"Convenção Coletiva de Trabalho",{"$f":"\"CCT - \"&YEAR('Disparo de Emails'!$L$2)&\"-\"&YEAR('Disparo de Emails'!$L$2)+1&\".pdf\"","v":"CCT - 2018-2019.pdf"}]
[null,"2017-02-01",null,null,null,null,null,"Guia INSS Complementar",{"$f":"\"GPS Complementar - \"&IF(MONTH('Disparo de Emails'!$L$2)<10,\"0\"&MONTH('Disparo de Emails'!$L$2),MONTH('Disparo de Emails'!$L$2))&\".\"&YEAR('Disparo de Emails'!$L$2)&\".pdf\"","v":"GPS Complementar - 10.2018.pdf"}]
[null,"2017-01-01",null,null,null,null,null,"Guia FGTS Complementar",{"$f":"\"GRF Complementar - \"&IF(MONTH('Disparo de Emails'!$L$2)<10,\"0\"&MONTH('Disparo de Emails'!$L$2),MONTH('Disparo de Emails'!$L$2))&\".\"&YEAR('Disparo de Emails'!$L$2)&\".pdf\"","v":"GRF Complementar - 10.2018.pdf"}]
[null,null,null,null,null,null,null,"Empregada Doméstica",{"$f":"\"Empregada Doméstica - \"&IF(MONTH('Disparo de Emails'!$L$2)<10,\"0\"&MONTH('Disparo de Emails'!$L$2),MONTH('Disparo de Emails'!$L$2))&\".\"&YEAR('Disparo de Emails'!$L$2)&\".zip\"","v":"Empregada Doméstica - 10.2018.zip"}]
[null,null,null,null,null,null,null,"Guia INSS Tomadores",{"$f":"\"GPS Tomadores - \"&IF(MONTH('Disparo de Emails'!$L$2)<10,\"0\"&MONTH('Disparo de Emails'!$L$2),MONTH('Disparo de Emails'!$L$2))&\".\"&YEAR('Disparo de Emails'!$L$2)&\".pdf\"","v":"GPS Tomadores - 10.2018.pdf"}]
[null,null,null,null,null,null,null,"Guia FGTS Tomadores",{"$f":"\"GRF Tomadores - \"&IF(MONTH('Disparo de Emails'!$L$2)<10,\"0\"&MONTH('Disparo de Emails'!$L$2),MONTH('Disparo de Emails'!$L$2))&\".\"&YEAR('Disparo de Emails'!$L$2)&\".pdf\"","v":"GRF Tomadores - 10.2018.pdf"}]
[null,null,null,null,null,null,null,"Holerite 1ª Parcela - 13º Salário",{"$f":"\"Holerite 13\"&\".\"&YEAR('Disparo de Emails'!$L$2)&\" - Primeira Parcela.pdf\"","v":"Holerite 13.2018 - Primeira Parcela.pdf"}]
[null,null,null,null,null,null,null,"Guia INSS - 13º Salário",{"$f":"\"GPS - 13\"&\".\"&YEAR('Disparo de Emails'!$L$2)&\".pdf\"","v":"GPS - 13.2018.pdf"}]
[null,null,null,null,null,null,null,"Guia FGTS - 13º Salário",{"$f":"\"GRF - 13.\"&YEAR('Disparo de Emails'!$L$2)&\".pdf\"","v":"GRF - 13.2018.pdf"}]
[null,null,null,null,null,null,null,"Holerite 2ª Parcela - 13º Salário",{"$f":"\"Holerite 13\"&\".\"&YEAR('Disparo de Emails'!$L$2)&\" - Segunda Parcela.pdf\"","v":"Holerite 13.2018 - Segunda Parcela.pdf"}]

{"sheet":"Tabela Infos","index":3,"n_rows":44,"n_cols":26,"rows_kept":44,"cut":false,"hidden":true,"merged":[[1,1,1,2],[12,8,12,9],[13,8,13,9],[14,8,14,9],[15,8,15,9],[1,3,1,4],[3,11,22,12],[3,19,22,20],[3,8,3,9],[4,8,4,9],[5,8,5,9],[16,8,16,9],[8,8,8,9],[9,8,9,9],[10,8,10,9],[11,8,11,9],[39,1,39,4],[6,8,6,9],[7,8,7,9],[17,8,17,9],[18,8,18,9],[19,8,19,9],[20,8,20,9],[21,8,21,9],[22,8,22,9]]}
[]
[null,"Caminho Verificação PDF",null,{"$f":"'Disparo de Emails'!F4&\"\\*.pdf\"","v":{"$error":"#N/A"}}]
[null,1,{"$f":"IFERROR(INDEX(caminho_verificacao,B3),\"\")","v":""},16,{"$f":"IFERROR(INDEX(caminho_verificacao,D3),\"\")","v":""}]
[null,2,{"$f":"IFERROR(INDEX(caminho_verificacao,B4),\"\")","v":""},17,{"$f":"IFERROR(INDEX(caminho_verificacao,D4),\"\")","v":""},null,1,{"$f":"IF(G4>MAX('Tabela Infos'!$W$4:$W$23),\"\",VLOOKUP(G4,'Tabela Infos'!$W$4:$Z$23,3,0))","v":""},{"$f":"IF(H4=\"\",\"\",INDEX(cadastro_arquivos,MATCH('Tabela Infos'!H4,'Cadastro Planilha'!$I$11:$I$40,0),1))","v":""},null,{"$f":"IF(H4=\"\",K3,I4)","v":0},{"$f":"IF(K23=0,\"Não foram encontrados os arquivos procurados na pasta indicada. Por favor verifique.\",K23)","v":"Não foram encontrados os arquivos procurados na pasta indicada. Por favor verifique."},null,{"$f":"IF(O4=\"\",\"\",MAX($N$3:N3)+1)","v":""},{"$f":"IFERROR(INDEX('Vencimentos Impostos'!$C$4:$G$15,MATCH('Disparo de Emails'!$L$2,'Vencimentos Impostos'!$B$4:$B$15,0),MATCH('Tabela Infos'!I4,'Vencimentos Impostos'!$C$3:$G$3,0)),\"\")","v":""},{"$f":"IF(O4=\"\",\"\",VLOOKUP(WEEKDAY(O4),dia_semana,2,0))","v":""},{"$f":"IF(O4=\"\",\"\",\"> \"&I4&\" - \"&DAY(O4)&\"/\"&MONTH(O4)&\"/\"&YEAR(O4)&\" (\"&P4&\")\")","v":""},{"$f":"IF(G4>MAX($N$4:$N$23),\"\",VLOOKUP(G4,$N$4:$Q$23,4,0))","v":""},{"$f":"IF(R4=\"\",S3,R4)","v":0},{"$f":"IF(S17=0,\"Não há vencimentos para as guias anexadas neste e-mail.\",S17)","v":"Não há vencimentos para as guias anexadas neste e-mail."},null,null,{"$f":"IF(Y4=\"\",\"\",MAX('Disparo de Emails'!$E$28:E28)+1)","v":""},"Anexo 1:",{"$f":"IF((COUNTIF('Tabela Infos'!$C$3:$C$32,VLOOKUP(VLOOKUP('Disparo de Emails'!$F$2,'Cadastro Planilha'!$H$4:$AG$8,MATCH(X4,'Cadastro Planilha'!$H$3:$AG$3,0),0),'Cadastro Planilha'!$H$11:$I$40,2,0))\n+COUNTIF('Tabela Infos'!$E$3:$E$32,VLOOKUP(VLOOKUP('Disparo de Emails'!$F$2,'Cadastro Planilha'!$H$4:$AG$8,MATCH(X4,'Cadastro Planilha'!$H$3:$AG$3,0),0),'Cadastro Planilha'!$H$11:$I$40,2,0)))>0,VLOOKUP(VLOOKUP('Disparo de Emails'!$F$2,'Cadastro Planilha'!$H$4:$AG$8,MATCH(X4,'Cadastro Planilha'!$H$3:$AG$3,0),0),'Cadastro Planilha'!$H$11:$I$40,2,0),\"\")","v":""},{"$f":"IF(Y4=\"\",\"\",'Disparo de Emails'!$F$4&\"\\\"&Y4)","v":""}]
[null,3,{"$f":"IFERROR(INDEX(caminho_verificacao,B5),\"\")","v":""},18,{"$f":"IFERROR(INDEX(caminho_verificacao,D5),\"\")","v":""},null,2,{"$f":"IF(G5>MAX('Tabela Infos'!$W$4:$W$23),\"\",VLOOKUP(G5,'Tabela Infos'!$W$4:$Z$23,3,0))","v":""},{"$f":"IF(H5=\"\",\"\",INDEX(cadastro_arquivos,MATCH('Tabela Infos'!H5,'Cadastro Planilha'!$I$11:$I$40,0),1))","v":""},null,{"$f":"IF(H5=\"\",K4,K4&CHAR(10)&I5)","v":0},null,null,{"$f":"IF(O5=\"\",\"\",MAX($N$3:N4)+1)","v":""},{"$f":"IFERROR(INDEX('Vencimentos Impostos'!$C$4:$G$15,MATCH('Disparo de Emails'!$L$2,'Vencimentos Impostos'!$B$4:$B$15,0),MATCH('Tabela Infos'!I5,'Vencimentos Impostos'!$C$3:$G$3,0)),\"\")","v":""},"","",{"$f":"IF(G5>MAX($N$4:$N$23),\"\",VLOOKUP(G5,$N$4:$Q$23,4,0))","v":""},{"$f":"IF(R5=\"\",S4,S4&CHAR(10)&R5)","v":0},null,null,null,{"$f":"IF(Y5=\"\",\"\",MAX($W$4:W4)+1)","v":""},"Anexo 2:",{"$f":"IF((COUNTIF('Tabela Infos'!$C$3:$C$32,VLOOKUP(VLOOKUP('Disparo de Emails'!$F$2,'Cadastro Planilha'!$H$4:$AG$8,MATCH(X5,'Cadastro Planilha'!$H$3:$AG$3,0),0),'Cadastro Planilha'!$H$11:$I$40,2,0))\n+COUNTIF('Tabela Infos'!$E$3:$E$32,VLOOKUP(VLOOKUP('Disparo de Emails'!$F$2,'Cadastro Planilha'!$H$4:$AG$8,MATCH(X5,'Cadastro Planilha'!$H$3:$AG$3,0),0),'Cadastro Planilha'!$H$11:$I$40,2,0)))>0,VLOOKUP(VLOOKUP('Disparo de Emails'!$F$2,'Cadastro Planilha'!$H$4:$AG$8,MATCH(X5,'Cadastro Planilha'!$H$3:$AG$3,0),0),'Cadastro Planilha'!$H$11:$I$40,2,0),\"\")","v":""},{"$f":"IF(Y5=\"\",\"\",'Disparo de Emails'!$F$4&\"\\\"&Y5)","v":""}]
[null,4,{"$f":"IFERROR(INDEX(caminho_verificacao,B6),\"\")","v":""},19,{"$f":"IFERROR(INDEX(caminho_verificacao,D6),\"\")","v":""},null,3,{"$f":"IF(G6>MAX('Tabela Infos'!$W$4:$W$23),\"\",VLOOKUP(G6,'Tabela Infos'!$W$4:$Z$23,3,0))","v":""},{"$f":"IF(H6=\"\",\"\",INDEX(cadastro_arquivos,MATCH('Tabela Infos'!H6,'Cadastro Planilha'!$I$11:$I$40,0),1))","v":""},null,0,null,null,{"$f":"IF(O6=\"\",\"\",MAX($N$3:N5)+1)","v":""},{"$f":"IFERROR(INDEX('Vencimentos Impostos'!$C$4:$G$15,MATCH('Disparo de Emails'!$L$2,'Vencimentos Impostos'!$B$4:$B$15,0),MATCH('Tabela Infos'!I6,'Vencimentos Impostos'!$C$3:$G$3,0)),\"\")","v":""},"","","",0,null,null,null,{"$f":"IF(Y6=\"\",\"\",MAX($W$4:W5)+1)","v":""},"Anexo 3:",{"$f":"IF((COUNTIF('Tabela Infos'!$C$3:$C$32,VLOOKUP(VLOOKUP('Disparo de Emails'!$F$2,'Cadastro Planilha'!$H$4:$AG$8,MATCH(X6,'Cadastro Planilha'!$H$3:$AG$3,0),0),'Cadastro Planilha'!$H$11:$I$40,2,0))\n+COUNTIF('Tabela Infos'!$E$3:$E$32,VLOOKUP(VLOOKUP('Disparo de Emails'!$F$2,'Cadastro Planilha'!$H$4:$AG$8,MATCH(X6,'Cadastro Planilha'!$H$3:$AG$3,0),0),'Cadastro Planilha'!$H$11:$I$40,2,0)))>0,VLOOKUP(VLOOKUP('Disparo de Emails'!$F$2,'Cadastro Planilha'!$H$4:$AG$8,MATCH(X6,'Cadastro Planilha'!$H$3:$AG$3,0),0),'Cadastro Planilha'!$H$11:$I$40,2,0),\"\")","v":""},{"$f":"IF(Y6=\"\",\"\",'Disparo de Emails'!$F$4&\"\\\"&Y6)","v":""}]
[null,5,{"$f":"IFERROR(INDEX(caminho_verificacao,B7),\"\")","v":""},20,{"$f":"IFERROR(INDEX(caminho_verificacao,D7),\"\")","v":""},null,4,{"$f":"IF(G7>MAX('Tabela Infos'!$W$4:$W$23),\"\",VLOOKUP(G7,'Tabela Infos'!$W$4:$Z$23,3,0))","v":""},{"$f":"IF(H7=\"\",\"\",INDEX(cadastro_arquivos,MATCH('Tabela Infos'!H7,'Cadastro Planilha'!$I$11:$I$40,0),1))","v":""},null,0,null,null,{"$f":"IF(O7=\"\",\"\",MAX($N$3:N6)+1)","v":""},{"$f":"IFERROR(INDEX('Vencimentos Impostos'!$C$4:$G$15,MATCH('Disparo de Emails'!$L$2,'Vencimentos Impostos'!$B$4:$B$15,0),MATCH('Tabela Infos'!I7,'Vencimentos Impostos'!$C$3:$G$3,0)),\"\")","v":""},"","","",0,null,null,null,{"$f":"IF(Y7=\"\",\"\",MAX($W$4:W6)+1)","v":""},"Anexo 4:",{"$f":"IF((COUNTIF('Tabela Infos'!$C$3:$C$32,VLOOKUP(VLOOKUP('Disparo de Emails'!$F$2,'Cadastro Planilha'!$H$4:$AG$8,MATCH(X7,'Cadastro Planilha'!$H$3:$AG$3,0),0),'Cadastro Planilha'!$H$11:$I$40,2,0))\n+COUNTIF('Tabela Infos'!$E$3:$E$32,VLOOKUP(VLOOKUP('Disparo de Emails'!$F$2,'Cadastro Planilha'!$H$4:$AG$8,MATCH(X7,'Cadastro Planilha'!$H$3:$AG$3,0),0),'Cadastro Planilha'!$H$11:$I$40,2,0)))>0,VLOOKUP(VLOOKUP('Disparo de Emails'!$F$2,'Cadastro Planilha'!$H$4:$AG$8,MATCH(X7,'Cadastro Planilha'!$H$3:$AG$3,0),0),'Cadastro Planilha'!$H$11:$I$40,2,0),\"\")","v":""},{"$f":"IF(Y7=\"\",\"\",'Disparo de Emails'!$F$4&\"\\\"&Y7)","v":""}]
[null,6,{"$f":"IFERROR(INDEX(caminho_verificacao,B8),\"\")","v":""},21,{"$f":"IFERROR(INDEX(caminho_verificacao,D8),\"\")","v":""},null,5,{"$f":"IF(G8>MAX('Tabela Infos'!$W$4:$W$23),\"\",VLOOKUP(G8,'Tabela Infos'!$W$4:$Z$23,3,0))","v":""},{"$f":"IF(H8=\"\",\"\",INDEX(cadastro_arquivos,MATCH('Tabela Infos'!H8,'Cadastro Planilha'!$I$11:$I$40,0),1))","v":""},null,0,null,null,{"$f":"IF(O8=\"\",\"\",MAX($N$3:N7)+1)","v":""},{"$f":"IFERROR(INDEX('Vencimentos Impostos'!$C$4:$G$15,MATCH('Disparo de Emails'!$L$2,'Vencimentos Impostos'!$B$4:$B$15,0),MATCH('Tabela Infos'!I8,'Vencimentos Impostos'!$C$3:$G$3,0)),\"\")","v":""},"","","",0,null,null,null,{"$f":"IF(Y8=\"\",\"\",MAX($W$4:W7)+1)","v":""},"Anexo 5:",{"$f":"IF((COUNTIF('Tabela Infos'!$C$3:$C$32,VLOOKUP(VLOOKUP('Disparo de Emails'!$F$2,'Cadastro Planilha'!$H$4:$AG$8,MATCH(X8,'Cadastro Planilha'!$H$3:$AG$3,0),0),'Cadastro Planilha'!$H$11:$I$40,2,0))\n+COUNTIF('Tabela Infos'!$E$3:$E$32,VLOOKUP(VLOOKUP('Disparo de Emails'!$F$2,'Cadastro Planilha'!$H$4:$AG$8,MATCH(X8,'Cadastro Planilha'!$H$3:$AG$3,0),0),'Cadastro Planilha'!$H$11:$I$40,2,0)))>0,VLOOKUP(VLOOKUP('Disparo de Emails'!$F$2,'Cadastro Planilha'!$H$4:$AG$8,MATCH(X8,'Cadastro Planilha'!$H$3:$AG$3,0),0),'Cadastro Planilha'!$H$11:$I$40,2,0),\"\")","v":""},{"$f":"IF(Y8=\"\",\"\",'Disparo de Emails'!$F$4&\"\\\"&Y8)","v":""}]
[null,7,{"$f":"IFERROR(INDEX(caminho_verificacao,B9),\"\")","v":""},22,{"$f":"IFERROR(INDEX(caminho_verificacao,D9),\"\")","v":""},null,6,{"$f":"IF(G9>MAX('Tabela Infos'!$W$4:$W$23),\"\",VLOOKUP(G9,'Tabela Infos'!$W$4:$Z$23,3,0))","v":""},{"$f":"IF(H9=\"\",\"\",INDEX(cadastro_arquivos,MATCH('Tabela Infos'!H9,'Cadastro Planilha'!$I$11:$I$40,0),1))","v":""},null,0,null,null,{"$f":"IF(O9=\"\",\"\",MAX($N$3:N8)+1)","v":""},{"$f":"IFERROR(INDEX('Vencimentos Impostos'!$C$4:$G$15,MATCH('Disparo de Emails'!$L$2,'Vencimentos Impostos'!$B$4:$B$15,0),MATCH('Tabela Infos'!I9,'Vencimentos Impostos'!$C$3:$G$3,0)),\"\")","v":""},"","","",0,null,null,null,{"$f":"IF(Y9=\"\",\"\",MAX($W$4:W8)+1)","v":""},"Anexo 6:",{"$f":"IF((COUNTIF('Tabela Infos'!$C$3:$C$32,VLOOKUP(VLOOKUP('Disparo de Emails'!$F$2,'Cadastro Planilha'!$H$4:$AG$8,MATCH(X9,'Cadastro Planilha'!$H$3:$AG$3,0),0),'Cadastro Planilha'!$H$11:$I$40,2,0))\n+COUNTIF('Tabela Infos'!$E$3:$E$32,VLOOKUP(VLOOKUP('Disparo de Emails'!$F$2,'Cadastro Planilha'!$H$4:$AG$8,MATCH(X9,'Cadastro Planilha'!$H$3:$AG$3,0),0),'Cadastro Planilha'!$H$11:$I$40,2,0)))>0,VLOOKUP(VLOOKUP('Disparo de Emails'!$F$2,'Cadastro Planilha'!$H$4:$AG$8,MATCH(X9,'Cadastro Planilha'!$H$3:$AG$3,0),0),'Cadastro Planilha'!$H$11:$I$40,2,0),\"\")","v":""},{"$f":"IF(Y9=\"\",\"\",'Disparo de Emails'!$F$4&\"\\\"&Y9)","v":""}]
[null,8,{"$f":"IFERROR(INDEX(caminho_verificacao,B10),\"\")","v":""},23,{"$f":"IFERROR(INDEX(caminho_verificacao,D10),\"\")","v":""},null,7,{"$f":"IF(G10>MAX('Tabela Infos'!$W$4:$W$23),\"\",VLOOKUP(G10,'Tabela Infos'!$W$4:$Z$23,3,0))","v":""},{"$f":"IF(H10=\"\",\"\",INDEX(cadastro_arquivos,MATCH('Tabela Infos'!H10,'Cadastro Planilha'!$I$11:$I$40,0),1))","v":""},null,0,null,null,{"$f":"IF(O10=\"\",\"\",MAX($N$3:N9)+1)","v":""},{"$f":"IFERROR(INDEX('Vencimentos Impostos'!$C$4:$G$15,MATCH('Disparo de Emails'!$L$2,'Vencimentos Impostos'!$B$4:$B$15,0),MATCH('Tabela Infos'!I10,'Vencimentos Impostos'!$C$3:$G$3,0)),\"\")","v":""},"","","",0,null,null,null,{"$f":"IF(Y10=\"\",\"\",MAX($W$4:W9)+1)","v":""},"Anexo 7:",{"$f":"IF((COUNTIF('Tabela Infos'!$C$3:$C$32,VLOOKUP(VLOOKUP('Disparo de Emails'!$F$2,'Cadastro Planilha'!$H$4:$AG$8,MATCH(X10,'Cadastro Planilha'!$H$3:$AG$3,0),0),'Cadastro Planilha'!$H$11:$I$40,2,0))\n+COUNTIF('Tabela Infos'!$E$3:$E$32,VLOOKUP(VLOOKUP('Disparo de Emails'!$F$2,'Cadastro Planilha'!$H$4:$AG$8,MATCH(X10,'Cadastro Planilha'!$H$3:$AG$3,0),0),'Cadastro Planilha'!$H$11:$I$40,2,0)))>0,VLOOKUP(VLOOKUP('Disparo de Emails'!$F$2,'Cadastro Planilha'!$H$4:$AG$8,MATCH(X10,'Cadastro Planilha'!$H$3:$AG$3,0),0),'Cadastro Planilha'!$H$11:$I$40,2,0),\"\")","v":""},{"$f":"IF(Y10=\"\",\"\",'Disparo de Emails'!$F$4&\"\\\"&Y10)","v":""}]
[null,9,{"$f":"IFERROR(INDEX(caminho_verificacao,B11),\"\")","v":""},24,{"$f":"IFERROR(INDEX(caminho_verificacao,D11),\"\")","v":""},null,8,{"$f":"IF(G11>MAX('Tabela Infos'!$W$4:$W$23),\"\",VLOOKUP(G11,'Tabela Infos'!$W$4:$Z$23,3,0))","v":""},{"$f":"IF(H11=\"\",\"\",INDEX(cadastro_arquivos,MATCH('Tabela Infos'!H11,'Cadastro Planilha'!$I$11:$I$40,0),1))","v":""},null,0,null,null,{"$f":"IF(O11=\"\",\"\",MAX($N$3:N10)+1)","v":""},{"$f":"IFERROR(INDEX('Vencimentos Impostos'!$C$4:$G$15,MATCH('Disparo de Emails'!$L$2,'Vencimentos Impostos'!$B$4:$B$15,0),MATCH('Tabela Infos'!I11,'Vencimentos Impostos'!$C$3:$G$3,0)),\"\")","v":""},"","","",0,null,null,null,{"$f":"IF(Y11=\"\",\"\",MAX($W$4:W10)+1)","v":""},"Anexo 8:",{"$f":"IF((COUNTIF('Tabela Infos'!$C$3:$C$32,VLOOKUP(VLOOKUP('Disparo de Emails'!$F$2,'Cadastro Planilha'!$H$4:$AG$8,MATCH(X11,'Cadastro Planilha'!$H$3:$AG$3,0),0),'Cadastro Planilha'!$H$11:$I$40,2,0))\n+COUNTIF('Tabela Infos'!$E$3:$E$32,VLOOKUP(VLOOKUP('Disparo de Emails'!$F$2,'Cadastro Planilha'!$H$4:$AG$8,MATCH(X11,'Cadastro Planilha'!$H$3:$AG$3,0),0),'Cadastro Planilha'!$H$11:$I$40,2,0)))>0,VLOOKUP(VLOOKUP('Disparo de Emails'!$F$2,'Cadastro Planilha'!$H$4:$AG$8,MATCH(X11,'Cadastro Planilha'!$H$3:$AG$3,0),0),'Cadastro Planilha'!$H$11:$I$40,2,0),\"\")","v":""},{"$f":"IF(Y11=\"\",\"\",'Disparo de Emails'!$F$4&\"\\\"&Y11)","v":""}]
[null,10,{"$f":"IFERROR(INDEX(caminho_verificacao,B12),\"\")","v":""},25,{"$f":"IFERROR(INDEX(caminho_verificacao,D12),\"\")","v":""},null,9,{"$f":"IF(G12>MAX('Tabela Infos'!$W$4:$W$23),\"\",VLOOKUP(G12,'Tabela Infos'!$W$4:$Z$23,3,0))","v":""},{"$f":"IF(H12=\"\",\"\",INDEX(cadastro_arquivos,MATCH('Tabela Infos'!H12,'Cadastro Planilha'!$I$11:$I$40,0),1))","v":""},null,0,null,null,{"$f":"IF(O12=\"\",\"\",MAX($N$3:N11)+1)","v":""},{"$f":"IFERROR(INDEX('Vencimentos Impostos'!$C$4:$G$15,MATCH('Disparo de Emails'!$L$2,'Vencimentos Impostos'!$B$4:$B$15,0),MATCH('Tabela Infos'!I12,'Vencimentos Impostos'!$C$3:$G$3,0)),\"\")","v":""},"","","",0,null,null,null,{"$f":"IF(Y12=\"\",\"\",MAX($W$4:W11)+1)","v":""},"Anexo 9:",{"$f":"IF((COUNTIF('Tabela Infos'!$C$3:$C$32,VLOOKUP(VLOOKUP('Disparo de Emails'!$F$2,'Cadastro Planilha'!$H$4:$AG$8,MATCH(X12,'Cadastro Planilha'!$H$3:$AG$3,0),0),'Cadastro Planilha'!$H$11:$I$40,2,0))\n+COUNTIF('Tabela Infos'!$E$3:$E$32,VLOOKUP(VLOOKUP('Disparo de Emails'!$F$2,'Cadastro Planilha'!$H$4:$AG$8,MATCH(X12,'Cadastro Planilha'!$H$3:$AG$3,0),0),'Cadastro Planilha'!$H$11:$I$40,2,0)))>0,VLOOKUP(VLOOKUP('Disparo de Emails'!$F$2,'Cadastro Planilha'!$H$4:$AG$8,MATCH(X12,'Cadastro Planilha'!$H$3:$AG$3,0),0),'Cadastro Planilha'!$H$11:$I$40,2,0),\"\")","v":""},{"$f":"IF(Y12=\"\",\"\",'Disparo de Emails'!$F$4&\"\\\"&Y12)","v":""}]
[null,11,{"$f":"IFERROR(INDEX(caminho_verificacao,B13),\"\")","v":""},26,{"$f":"IFERROR(INDEX(caminho_verificacao,D13),\"\")","v":""},null,10,{"$f":"IF(G13>MAX('Tabela Infos'!$W$4:$W$23),\"\",VLOOKUP(G13,'Tabela Infos'!$W$4:$Z$23,3,0))","v":""},{"$f":"IF(H13=\"\",\"\",INDEX(cadastro_arquivos,MATCH('Tabela Infos'!H13,'Cadastro Planilha'!$I$11:$I$40,0),1))","v":""},null,0,null,null,{"$f":"IF(O13=\"\",\"\",MAX($N$3:N12)+1)","v":""},{"$f":"IFERROR(INDEX('Vencimentos Impostos'!$C$4:$G$15,MATCH('Disparo de Emails'!$L$2,'Vencimentos Impostos'!$B$4:$B$15,0),MATCH('Tabela Infos'!I13,'Vencimentos Impostos'!$C$3:$G$3,0)),\"\")","v":""},"","","",0,null,null,null,{"$f":"IF(Y13=\"\",\"\",MAX($W$4:W12)+1)","v":""},"Anexo 10:",{"$f":"IF((COUNTIF('Tabela Infos'!$C$3:$C$32,VLOOKUP(VLOOKUP('Disparo de Emails'!$F$2,'Cadastro Planilha'!$H$4:$AG$8,MATCH(X13,'Cadastro Planilha'!$H$3:$AG$3,0),0),'Cadastro Planilha'!$H$11:$I$40,2,0))\n+COUNTIF('Tabela Infos'!$E$3:$E$32,VLOOKUP(VLOOKUP('Disparo de Emails'!$F$2,'Cadastro Planilha'!$H$4:$AG$8,MATCH(X13,'Cadastro Planilha'!$H$3:$AG$3,0),0),'Cadastro Planilha'!$H$11:$I$40,2,0)))>0,VLOOKUP(VLOOKUP('Disparo de Emails'!$F$2,'Cadastro Planilha'!$H$4:$AG$8,MATCH(X13,'Cadastro Planilha'!$H$3:$AG$3,0),0),'Cadastro Planilha'!$H$11:$I$40,2,0),\"\")","v":""},{"$f":"IF(Y13=\"\",\"\",'Disparo de Emails'!$F$4&\"\\\"&Y13)","v":""}]
[null,12,{"$f":"IFERROR(INDEX(caminho_verificacao,B14),\"\")","v":""},27,{"$f":"IFERROR(INDEX(caminho_verificacao,D14),\"\")","v":""},null,11,{"$f":"IF(G14>MAX('Tabela Infos'!$W$4:$W$23),\"\",VLOOKUP(G14,'Tabela Infos'!$W$4:$Z$23,3,0))","v":""},{"$f":"IF(H14=\"\",\"\",INDEX(cadastro_arquivos,MATCH('Tabela Infos'!H14,'Cadastro Planilha'!$I$11:$I$40,0),1))","v":""},null,0,null,null,{"$f":"IF(O14=\"\",\"\",MAX($N$3:N13)+1)","v":""},{"$f":"IFERROR(INDEX('Vencimentos Impostos'!$C$4:$G$15,MATCH('Disparo de Emails'!$L$2,'Vencimentos Impostos'!$B$4:$B$15,0),MATCH('Tabela Infos'!I14,'Vencimentos Impostos'!$C$3:$G$3,0)),\"\")","v":""},"","","",0,null,null,null,{"$f":"IF(Y14=\"\",\"\",MAX($W$4:W13)+1)","v":""},"Anexo 11:",{"$f":"IF((COUNTIF('Tabela Infos'!$C$3:$C$32,VLOOKUP(VLOOKUP('Disparo de Emails'!$F$2,'Cadastro Planilha'!$H$4:$AG$8,MATCH(X14,'Cadastro Planilha'!$H$3:$AG$3,0),0),'Cadastro Planilha'!$H$11:$I$40,2,0))\n+COUNTIF('Tabela Infos'!$E$3:$E$32,VLOOKUP(VLOOKUP('Disparo de Emails'!$F$2,'Cadastro Planilha'!$H$4:$AG$8,MATCH(X14,'Cadastro Planilha'!$H$3:$AG$3,0),0),'Cadastro Planilha'!$H$11:$I$40,2,0)))>0,VLOOKUP(VLOOKUP('Disparo de Emails'!$F$2,'Cadastro Planilha'!$H$4:$AG$8,MATCH(X14,'Cadastro Planilha'!$H$3:$AG$3,0),0),'Cadastro Planilha'!$H$11:$I$40,2,0),\"\")","v":""},{"$f":"IF(Y14=\"\",\"\",'Disparo de Emails'!$F$4&\"\\\"&Y14)","v":""}]
[null,13,{"$f":"IFERROR(INDEX(caminho_verificacao,B15),\"\")","v":""},28,{"$f":"IFERROR(INDEX(caminho_verificacao,D15),\"\")","v":""},null,12,{"$f":"IF(G15>MAX('Tabela Infos'!$W$4:$W$23),\"\",VLOOKUP(G15,'Tabela Infos'!$W$4:$Z$23,3,0))","v":""},{"$f":"IF(H15=\"\",\"\",INDEX(cadastro_arquivos,MATCH('Tabela Infos'!H15,'Cadastro Planilha'!$I$11:$I$40,0),1))","v":""},null,0,null,null,{"$f":"IF(O15=\"\",\"\",MAX($N$3:N14)+1)","v":""},{"$f":"IFERROR(INDEX('Vencimentos Impostos'!$C$4:$G$15,MATCH('Disparo de Emails'!$L$2,'Vencimentos Impostos'!$B$4:$B$15,0),MATCH('Tabela Infos'!I15,'Vencimentos Impostos'!$C$3:$G$3,0)),\"\")","v":""},"","","",0,null,null,null,{"$f":"IF(Y15=\"\",\"\",MAX($W$4:W14)+1)","v":""},"Anexo 12:",{"$f":"IF((COUNTIF('Tabela Infos'!$C$3:$C$32,VLOOKUP(VLOOKUP('Disparo de Emails'!$F$2,'Cadastro Planilha'!$H$4:$AG$8,MATCH(X15,'Cadastro Planilha'!$H$3:$AG$3,0),0),'Cadastro Planilha'!$H$11:$I$40,2,0))\n+COUNTIF('Tabela Infos'!$E$3:$E$32,VLOOKUP(VLOOKUP('Disparo de Emails'!$F$2,'Cadastro Planilha'!$H$4:$AG$8,MATCH(X15,'Cadastro Planilha'!$H$3:$AG$3,0),0),'Cadastro Planilha'!$H$11:$I$40,2,0)))>0,VLOOKUP(VLOOKUP('Disparo de Emails'!$F$2,'Cadastro Planilha'!$H$4:$AG$8,MATCH(X15,'Cadastro Planilha'!$H$3:$AG$3,0),0),'Cadastro Planilha'!$H$11:$I$40,2,0),\"\")","v":""},{"$f":"IF(Y15=\"\",\"\",'Disparo de Emails'!$F$4&\"\\\"&Y15)","v":""}]
[null,14,{"$f":"IFERROR(INDEX(caminho_verificacao,B16),\"\")","v":""},29,{"$f":"IFERROR(INDEX(caminho_verificacao,D16),\"\")","v":""},null,13,{"$f":"IF(G16>MAX('Tabela Infos'!$W$4:$W$23),\"\",VLOOKUP(G16,'Tabela Infos'!$W$4:$Z$23,3,0))","v":""},{"$f":"IF(H16=\"\",\"\",INDEX(cadastro_arquivos,MATCH('Tabela Infos'!H16,'Cadastro Planilha'!$I$11:$I$40,0),1))","v":""},null,0,null,null,{"$f":"IF(O16=\"\",\"\",MAX($N$3:N15)+1)","v":""},{"$f":"IFERROR(INDEX('Vencimentos Impostos'!$C$4:$G$15,MATCH('Disparo de Emails'!$L$2,'Vencimentos Impostos'!$B$4:$B$15,0),MATCH('Tabela Infos'!I16,'Vencimentos Impostos'!$C$3:$G$3,0)),\"\")","v":""},"","","",0,null,null,null,{"$f":"IF(Y16=\"\",\"\",MAX($W$4:W15)+1)","v":""},"Anexo 13:",{"$f":"IF((COUNTIF('Tabela Infos'!$C$3:$C$32,VLOOKUP(VLOOKUP('Disparo de Emails'!$F$2,'Cadastro Planilha'!$H$4:$AG$8,MATCH(X16,'Cadastro Planilha'!$H$3:$AG$3,0),0),'Cadastro Planilha'!$H$11:$I$40,2,0))\n+COUNTIF('Tabela Infos'!$E$3:$E$32,VLOOKUP(VLOOKUP('Disparo de Emails'!$F$2,'Cadastro Planilha'!$H$4:$AG$8,MATCH(X16,'Cadastro Planilha'!$H$3:$AG$3,0),0),'Cadastro Planilha'!$H$11:$I$40,2,0)))>0,VLOOKUP(VLOOKUP('Disparo de Emails'!$F$2,'Cadastro Planilha'!$H$4:$AG$8,MATCH(X16,'Cadastro Planilha'!$H$3:$AG$3,0),0),'Cadastro Planilha'!$H$11:$I$40,2,0),\"\")","v":""},{"$f":"IF(Y16=\"\",\"\",'Disparo de Emails'!$F$4&\"\\\"&Y16)","v":""}]
[null,15,{"$f":"IFERROR(INDEX(caminho_verificacao,B17),\"\")","v":""},30,{"$f":"IFERROR(INDEX(caminho_verificacao,D17),\"\")","v":""},null,14,{"$f":"IF(G17>MAX('Tabela Infos'!$W$4:$W$23),\"\",VLOOKUP(G17,'Tabela Infos'!$W$4:$Z$23,3,0))","v":""},{"$f":"IF(H17=\"\",\"\",INDEX(cadastro_arquivos,MATCH('Tabela Infos'!H17,'Cadastro Planilha'!$I$11:$I$40,0),1))","v":""},null,0,null,null,{"$f":"IF(O17=\"\",\"\",MAX($N$3:N16)+1)","v":""},{"$f":"IFERROR(INDEX('Vencimentos Impostos'!$C$4:$G$15,MATCH('Disparo de Emails'!$L$2,'Vencimentos Impostos'!$B$4:$B$15,0),MATCH('Tabela Infos'!I17,'Vencimentos Impostos'!$C$3:$G$3,0)),\"\")","v":""},"","","",0,null,null,null,{"$f":"IF(Y17=\"\",\"\",MAX($W$4:W16)+1)","v":""},"Anexo 14:",{"$f":"IF((COUNTIF('Tabela Infos'!$C$3:$C$32,VLOOKUP(VLOOKUP('Disparo de Emails'!$F$2,'Cadastro Planilha'!$H$4:$AG$8,MATCH(X17,'Cadastro Planilha'!$H$3:$AG$3,0),0),'Cadastro Planilha'!$H$11:$I$40,2,0))\n+COUNTIF('Tabela Infos'!$E$3:$E$32,VLOOKUP(VLOOKUP('Disparo de Emails'!$F$2,'Cadastro Planilha'!$H$4:$AG$8,MATCH(X17,'Cadastro Planilha'!$H$3:$AG$3,0),0),'Cadastro Planilha'!$H$11:$I$40,2,0)))>0,VLOOKUP(VLOOKUP('Disparo de Emails'!$F$2,'Cadastro Planilha'!$H$4:$AG$8,MATCH(X17,'Cadastro Planilha'!$H$3:$AG$3,0),0),'Cadastro Planilha'!$H$11:$I$40,2,0),\"\")","v":""},{"$f":"IF(Y17=\"\",\"\",'Disparo de Emails'!$F$4&\"\\\"&Y17)","v":""}]
[null,1,{"$f":"IFERROR(INDEX(caminho_verificacao2,B18),\"\")","v":""},16,{"$f":"IFERROR(INDEX(caminho_verificacao2,D18),\"\")","v":""},null,15,{"$f":"IF(G18>MAX('Tabela Infos'!$W$4:$W$23),\"\",VLOOKUP(G18,'Tabela Infos'!$W$4:$Z$23,3,0))","v":""},{"$f":"IF(H18=\"\",\"\",INDEX(cadastro_arquivos,MATCH('Tabela Infos'!H18,'Cadastro Planilha'!$I$11:$I$40,0),1))","v":""},null,{"$f":"IF(H18=\"\",K17,K17&CHAR(10)&I18)","v":0},null,null,{"$f":"IF(O18=\"\",\"\",MAX($N$3:N17)+1)","v":""},{"$f":"IFERROR(INDEX('Vencimentos Impostos'!$C$4:$G$15,MATCH('Disparo de Emails'!$L$2,'Vencimentos Impostos'!$B$4:$B$15,0),MATCH('Tabela Infos'!I18,'Vencimentos Impostos'!$C$3:$G$3,0)),\"\")","v":""},{"$f":"IF(O18=\"\",\"\",VLOOKUP(WEEKDAY(O18),dia_semana,2,0))","v":""},{"$f":"IF(O18=\"\",\"\",\"> \"&I18&\" - \"&DAY(O18)&\"/\"&MONTH(O18)&\"/\"&YEAR(O18)&\" (\"&P18&\")\")","v":""},"",{"$f":"IF(R18=\"\",S17,S17&CHAR(10)&R18)","v":0},null,null,null,{"$f":"IF(Y18=\"\",\"\",MAX($W$4:W17)+1)","v":""},"Anexo 15:",{"$f":"IF((COUNTIF('Tabela Infos'!$C$3:$C$32,VLOOKUP(VLOOKUP('Disparo de Emails'!$F$2,'Cadastro Planilha'!$H$4:$AG$8,MATCH(X18,'Cadastro Planilha'!$H$3:$AG$3,0),0),'Cadastro Planilha'!$H$11:$I$40,2,0))\n+COUNTIF('Tabela Infos'!$E$3:$E$32,VLOOKUP(VLOOKUP('Disparo de Emails'!$F$2,'Cadastro Planilha'!$H$4:$AG$8,MATCH(X18,'Cadastro Planilha'!$H$3:$AG$3,0),0),'Cadastro Planilha'!$H$11:$I$40,2,0)))>0,VLOOKUP(VLOOKUP('Disparo de Emails'!$F$2,'Cadastro Planilha'!$H$4:$AG$8,MATCH(X18,'Cadastro Planilha'!$H$3:$AG$3,0),0),'Cadastro Planilha'!$H$11:$I$40,2,0),\"\")","v":""},{"$f":"IF(Y18=\"\",\"\",'Disparo de Emails'!$F$4&\"\\\"&Y18)","v":""}]
[null,2,{"$f":"IFERROR(INDEX(caminho_verificacao2,B19),\"\")","v":""},17,{"$f":"IFERROR(INDEX(caminho_verificacao2,D19),\"\")","v":""},null,16,{"$f":"IF(G19>MAX('Tabela Infos'!$W$4:$W$23),\"\",VLOOKUP(G19,'Tabela Infos'!$W$4:$Z$23,3,0))","v":""},{"$f":"IF(H19=\"\",\"\",INDEX(cadastro_arquivos,MATCH('Tabela Infos'!H19,'Cadastro Planilha'!$I$11:$I$40,0),1))","v":""},null,0,null,null,{"$f":"IF(O19=\"\",\"\",MAX($N$3:N18)+1)","v":""},{"$f":"IFERROR(INDEX('Vencimentos Impostos'!$C$4:$G$15,MATCH('Disparo de Emails'!$L$2,'Vencimentos Impostos'!$B$4:$B$15,0),MATCH('Tabela Infos'!I19,'Vencimentos Impostos'!$C$3:$G$3,0)),\"\")","v":""},"","","",0,null,null,null,{"$f":"IF(Y19=\"\",\"\",MAX($W$4:W18)+1)","v":""},"Anexo 16:",{"$f":"IF((COUNTIF('Tabela Infos'!$C$3:$C$32,VLOOKUP(VLOOKUP('Disparo de Emails'!$F$2,'Cadastro Planilha'!$H$4:$AG$8,MATCH(X19,'Cadastro Planilha'!$H$3:$AG$3,0),0),'Cadastro Planilha'!$H$11:$I$40,2,0))\n+COUNTIF('Tabela Infos'!$E$3:$E$32,VLOOKUP(VLOOKUP('Disparo de Emails'!$F$2,'Cadastro Planilha'!$H$4:$AG$8,MATCH(X19,'Cadastro Planilha'!$H$3:$AG$3,0),0),'Cadastro Planilha'!$H$11:$I$40,2,0)))>0,VLOOKUP(VLOOKUP('Disparo de Emails'!$F$2,'Cadastro Planilha'!$H$4:$AG$8,MATCH(X19,'Cadastro Planilha'!$H$3:$AG$3,0),0),'Cadastro Planilha'!$H$11:$I$40,2,0),\"\")","v":""},{"$f":"IF(Y19=\"\",\"\",'Disparo de Emails'!$F$4&\"\\\"&Y19)","v":""}]
[null,3,{"$f":"IFERROR(INDEX(caminho_verificacao2,B20),\"\")","v":""},18,{"$f":"IFERROR(INDEX(caminho_verificacao2,D20),\"\")","v":""},null,17,{"$f":"IF(G20>MAX('Tabela Infos'!$W$4:$W$23),\"\",VLOOKUP(G20,'Tabela Infos'!$W$4:$Z$23,3,0))","v":""},{"$f":"IF(H20=\"\",\"\",INDEX(cadastro_arquivos,MATCH('Tabela Infos'!H20,'Cadastro Planilha'!$I$11:$I$40,0),1))","v":""},null,0,null,null,{"$f":"IF(O20=\"\",\"\",MAX($N$3:N19)+1)","v":""},{"$f":"IFERROR(INDEX('Vencimentos Impostos'!$C$4:$G$15,MATCH('Disparo de Emails'!$L$2,'Vencimentos Impostos'!$B$4:$B$15,0),MATCH('Tabela Infos'!I20,'Vencimentos Impostos'!$C$3:$G$3,0)),\"\")","v":""},"","","",0,null,null,null,{"$f":"IF(Y20=\"\",\"\",MAX($W$4:W19)+1)","v":""},"Anexo 17:",{"$f":"IF((COUNTIF('Tabela Infos'!$C$3:$C$32,VLOOKUP(VLOOKUP('Disparo de Emails'!$F$2,'Cadastro Planilha'!$H$4:$AG$8,MATCH(X20,'Cadastro Planilha'!$H$3:$AG$3,0),0),'Cadastro Planilha'!$H$11:$I$40,2,0))\n+COUNTIF('Tabela Infos'!$E$3:$E$32,VLOOKUP(VLOOKUP('Disparo de Emails'!$F$2,'Cadastro Planilha'!$H$4:$AG$8,MATCH(X20,'Cadastro Planilha'!$H$3:$AG$3,0),0),'Cadastro Planilha'!$H$11:$I$40,2,0)))>0,VLOOKUP(VLOOKUP('Disparo de Emails'!$F$2,'Cadastro Planilha'!$H$4:$AG$8,MATCH(X20,'Cadastro Planilha'!$H$3:$AG$3,0),0),'Cadastro Planilha'!$H$11:$I$40,2,0),\"\")","v":""},{"$f":"IF(Y20=\"\",\"\",'Disparo de Emails'!$F$4&\"\\\"&Y20)","v":""}]
[null,4,{"$f":"IFERROR(INDEX(caminho_verificacao2,B21),\"\")","v":""},19,{"$f":"IFERROR(INDEX(caminho_verificacao2,D21),\"\")","v":""},null,18,{"$f":"IF(G21>MAX('Tabela Infos'!$W$4:$W$23),\"\",VLOOKUP(G21,'Tabela Infos'!$W$4:$Z$23,3,0))","v":""},{"$f":"IF(H21=\"\",\"\",INDEX(cadastro_arquivos,MATCH('Tabela Infos'!H21,'Cadastro Planilha'!$I$11:$I$40,0),1))","v":""},null,0,null,null,{"$f":"IF(O21=\"\",\"\",MAX($N$3:N20)+1)","v":""},{"$f":"IFERROR(INDEX('Vencimentos Impostos'!$C$4:$G$15,MATCH('Disparo de Emails'!$L$2,'Vencimentos Impostos'!$B$4:$B$15,0),MATCH('Tabela Infos'!I21,'Vencimentos Impostos'!$C$3:$G$3,0)),\"\")","v":""},"","","",0,null,null,null,{"$f":"IF(Y21=\"\",\"\",MAX($W$4:W20)+1)","v":""},"Anexo 18:",{"$f":"IF((COUNTIF('Tabela Infos'!$C$3:$C$32,VLOOKUP(VLOOKUP('Disparo de Emails'!$F$2,'Cadastro Planilha'!$H$4:$AG$8,MATCH(X21,'Cadastro Planilha'!$H$3:$AG$3,0),0),'Cadastro Planilha'!$H$11:$I$40,2,0))\n+COUNTIF('Tabela Infos'!$E$3:$E$32,VLOOKUP(VLOOKUP('Disparo de Emails'!$F$2,'Cadastro Planilha'!$H$4:$AG$8,MATCH(X21,'Cadastro Planilha'!$H$3:$AG$3,0),0),'Cadastro Planilha'!$H$11:$I$40,2,0)))>0,VLOOKUP(VLOOKUP('Disparo de Emails'!$F$2,'Cadastro Planilha'!$H$4:$AG$8,MATCH(X21,'Cadastro Planilha'!$H$3:$AG$3,0),0),'Cadastro Planilha'!$H$11:$I$40,2,0),\"\")","v":""},{"$f":"IF(Y21=\"\",\"\",'Disparo de Emails'!$F$4&\"\\\"&Y21)","v":""}]
[null,5,{"$f":"IFERROR(INDEX(caminho_verificacao2,B22),\"\")","v":""},20,{"$f":"IFERROR(INDEX(caminho_verificacao2,D22),\"\")","v":""},null,19,{"$f":"IF(G22>MAX('Tabela Infos'!$W$4:$W$23),\"\",VLOOKUP(G22,'Tabela Infos'!$W$4:$Z$23,3,0))","v":""},{"$f":"IF(H22=\"\",\"\",INDEX(cadastro_arquivos,MATCH('Tabela Infos'!H22,'Cadastro Planilha'!$I$11:$I$40,0),1))","v":""},null,{"$f":"IF(H22=\"\",K21,K21&CHAR(10)&I22)","v":0},null,null,{"$f":"IF(O22=\"\",\"\",MAX($N$3:N21)+1)","v":""},{"$f":"IFERROR(INDEX('Vencimentos Impostos'!$C$4:$G$15,MATCH('Disparo de Emails'!$L$2,'Vencimentos Impostos'!$B$4:$B$15,0),MATCH('Tabela Infos'!I22,'Vencimentos Impostos'!$C$3:$G$3,0)),\"\")","v":""},"","","",0,null,null,null,{"$f":"IF(Y22=\"\",\"\",MAX($W$4:W21)+1)","v":""},"Anexo 19:",{"$f":"IF((COUNTIF('Tabela Infos'!$C$3:$C$32,VLOOKUP(VLOOKUP('Disparo de Emails'!$F$2,'Cadastro Planilha'!$H$4:$AG$8,MATCH(X22,'Cadastro Planilha'!$H$3:$AG$3,0),0),'Cadastro Planilha'!$H$11:$I$40,2,0))\n+COUNTIF('Tabela Infos'!$E$3:$E$32,VLOOKUP(VLOOKUP('Disparo de Emails'!$F$2,'Cadastro Planilha'!$H$4:$AG$8,MATCH(X22,'Cadastro Planilha'!$H$3:$AG$3,0),0),'Cadastro Planilha'!$H$11:$I$40,2,0)))>0,VLOOKUP(VLOOKUP('Disparo de Emails'!$F$2,'Cadastro Planilha'!$H$4:$AG$8,MATCH(X22,'Cadastro Planilha'!$H$3:$AG$3,0),0),'Cadastro Planilha'!$H$11:$I$40,2,0),\"\")","v":""},{"$f":"IF(Y22=\"\",\"\",'Disparo de Emails'!$F$4&\"\\\"&Y22)","v":""}]
[null,6,{"$f":"IFERROR(INDEX(caminho_verificacao2,B23),\"\")","v":""},21,{"$f":"IFERROR(INDEX(caminho_verificacao2,D23),\"\")","v":""},null,20,{"$f":"IF(G23>MAX('Tabela Infos'!$W$4:$W$23),\"\",VLOOKUP(G23,'Tabela Infos'!$W$4:$Z$23,3,0))","v":""},{"$f":"IF(H23=\"\",\"\",INDEX(cadastro_arquivos,MATCH('Tabela Infos'!H23,'Cadastro Planilha'!$I$11:$I$40,0),1))","v":""},null,0,null,null,{"$f":"IF(O23=\"\",\"\",MAX($N$3:N22)+1)","v":""},{"$f":"IFERROR(INDEX('Vencimentos Impostos'!$C$4:$G$15,MATCH('Disparo de Emails'!$L$2,'Vencimentos Impostos'!$B$4:$B$15,0),MATCH('Tabela Infos'!I23,'Vencimentos Impostos'!$C$3:$G$3,0)),\"\")","v":""},"","","",0,null,null,null,{"$f":"IF(Y23=\"\",\"\",MAX($W$4:W22)+1)","v":""},"Anexo 20:",{"$f":"IF((COUNTIF('Tabela Infos'!$C$3:$C$32,VLOOKUP(VLOOKUP('Disparo de Emails'!$F$2,'Cadastro Planilha'!$H$4:$AG$8,MATCH(X23,'Cadastro Planilha'!$H$3:$AG$3,0),0),'Cadastro Planilha'!$H$11:$I$40,2,0))\n+COUNTIF('Tabela Infos'!$E$3:$E$32,VLOOKUP(VLOOKUP('Disparo de Emails'!$F$2,'Cadastro Planilha'!$H$4:$AG$8,MATCH(X23,'Cadastro Planilha'!$H$3:$AG$3,0),0),'Cadastro Planilha'!$H$11:$I$40,2,0)))>0,VLOOKUP(VLOOKUP('Disparo de Emails'!$F$2,'Cadastro Planilha'!$H$4:$AG$8,MATCH(X23,'Cadastro Planilha'!$H$3:$AG$3,0),0),'Cadastro Planilha'!$H$11:$I$40,2,0),\"\")","v":""},{"$f":"IF(Y23=\"\",\"\",'Disparo de Emails'!$F$4&\"\\\"&Y23)","v":""}]
[null,7,{"$f":"IFERROR(INDEX(caminho_verificacao2,B24),\"\")","v":""},22,{"$f":"IFERROR(INDEX(caminho_verificacao2,D24),\"\")","v":""}]
[null,8,{"$f":"IFERROR(INDEX(caminho_verificacao2,B25),\"\")","v":""},23,{"$f":"IFERROR(INDEX(caminho_verificacao2,D25),\"\")","v":""}]
[null,9,{"$f":"IFERROR(INDEX(caminho_verificacao2,B26),\"\")","v":""},24,{"$f":"IFERROR(INDEX(caminho_verificacao2,D26),\"\")","v":""}]
[null,10,{"$f":"IFERROR(INDEX(caminho_verificacao2,B27),\"\")","v":""},25,{"$f":"IFERROR(INDEX(caminho_verificacao2,D27),\"\")","v":""}]
[null,11,{"$f":"IFERROR(INDEX(caminho_verificacao2,B28),\"\")","v":""},26,{"$f":"IFERROR(INDEX(caminho_verificacao2,D28),\"\")","v":""},null,null,"Verificação ZIP",{"$f":"'Disparo de Emails'!F4&\"\\*.zip\"","v":{"$error":"#N/A"}}]
[null,12,{"$f":"IFERROR(INDEX(caminho_verificacao2,B29),\"\")","v":""},27,{"$f":"IFERROR(INDEX(caminho_verificacao2,D29),\"\")","v":""}]
[null,13,{"$f":"IFERROR(INDEX(caminho_verificacao2,B30),\"\")","v":""},28,{"$f":"IFERROR(INDEX(caminho_verificacao2,D30),\"\")","v":""},null,null,"DAS abaixo R$ 10"]
[null,14,{"$f":"IFERROR(INDEX(caminho_verificacao2,B31),\"\")","v":""},29,{"$f":"IFERROR(INDEX(caminho_verificacao2,D31),\"\")","v":""},null,null,{"$f":"IFERROR(IF(VLOOKUP('Disparo de Emails'!L2&'Disparo de Emails'!F1,'[1]Banco de Dados'!$B17:$R5016,17,0)=\"\",\"\",VLOOKUP('Disparo de Emails'!L2&'Disparo de Emails'!F1,'[1]Banco de Dados'!$B17:$R5016,17,0)),\"\")","v":""},""]
[null,15,{"$f":"IFERROR(INDEX(caminho_verificacao2,B32),\"\")","v":""},30,{"$f":"IFERROR(INDEX(caminho_verificacao2,D32),\"\")","v":""}]
[]
[]
[]
[]
[]
[]
[]
[null,"Tamanho Linha:"]
[null,{"$f":"LEN('Disparo de Emails'!F11)-LEN(SUBSTITUTE('Disparo de Emails'!F11,CHAR(10),\"\"))+1","v":1},{"$f":"IF(B41<2,+ROUNDDOWN(D41/90,0),0)","v":0},{"$f":"LEN('Disparo de Emails'!F11)","v":84},{"$f":"IF(SUM(B41:C41)>=8,SUM(B41:C41)*15,IF(SUM(B41:C41)>=4,SUM(B41:C41)*16,SUM(B41:C41)*18))","v":18}]
[null,{"$f":"LEN('Disparo de Emails'!F14)-LEN(SUBSTITUTE('Disparo de Emails'!F14,CHAR(10),\"\"))+1","v":1},0,{"$f":"LEN('Disparo de Emails'!F14)","v":55},{"$f":"IF(SUM(B42:C42)>=8,SUM(B42:C42)*15,IF(SUM(B42:C42)>=4,SUM(B42:C42)*16,SUM(B42:C42)*18))","v":18}]
[null,{"$f":"LEN('Disparo de Emails'!F17)-LEN(SUBSTITUTE('Disparo de Emails'!F17,CHAR(10),\"\"))+1","v":6},0,{"$f":"LEN('Disparo de Emails'!F17)","v":351},{"$f":"IF(SUM(B43:C43)>=8,SUM(B43:C43)*15,IF(SUM(B43:C43)>=4,SUM(B43:C43)*18,SUM(B43:C43)*120))","v":108}]
[null,{"$f":"LEN('Disparo de Emails'!F19)-LEN(SUBSTITUTE('Disparo de Emails'!F19,CHAR(10),\"\"))+1","v":1},{"$f":"IF(B44<2,+ROUNDDOWN(D44/90,0),0)","v":1},{"$f":"LEN('Disparo de Emails'!F19)","v":106},36]

{"sheet":"Vencimentos Impostos","index":4,"n_rows":15,"n_cols":11,"rows_kept":15,"cut":false,"hidden":false,"merged":[[1,2,1,6],[1,9,1,10]]}
[]
[null,null,"Data Vencimento",null,null,null,null,null,null,"13º Salário"]
[null,"MÊS REF.","DAS do Simples Nacional","Contribuição Previdenciária sobre Receita Bruta - CPRB","Guia INSS","Guia FGTS","Guia IRRF","5º dia útil","Dia 20","1ª Parcela","2ª Parcela"]
[null,"2018-12-01","2019-01-18",{"$f":"C4","v":"2019-01-18"},{"$f":"C4","v":"2019-01-18"},"2019-01-07",{"$f":"C4","v":"2019-01-18"},"2019-01-08","2018-12-20","2018-12-20","2018-12-20"]
[null,"2018-11-01","2018-12-20","2018-12-20","2018-12-20","2018-12-07","2018-12-20","2018-12-07","2018-11-20","2018-11-30","2018-11-30"]
[null,"2018-10-01","2018-11-20","2018-11-20","2018-11-20","2018-11-07","2018-11-20","2018-11-08","2018-10-19","N/A","N/A"]
[null,"2018-09-01","2018-10-22","2018-10-19","2018-10-19","2018-10-05","2018-10-19","2018-10-05","2018-09-20","N/A","N/A"]
[null,"2018-08-01","2018-09-20","2018-09-20","2018-09-20","2018-09-06","2018-09-20","2018-09-06","2018-08-20","N/A","N/A"]
[null,"2018-07-01","2018-08-20","2018-08-20","2018-08-20","2018-08-07","2018-08-20","2018-08-07","2018-07-20","N/A","N/A"]
[null,"2018-06-01","2018-07-20","2018-07-20","2018-07-20","2018-07-06","2018-07-20","2018-07-06","2018-06-20","N/A","N/A"]
[null,"2018-05-01","2018-06-20","2018-06-20","2018-06-20",{"$f":"+E11-1","v":"2018-06-19"},"2018-06-20","2018-07-17","2018-05-20","N/A","N/A"]
[null,"2018-04-01","2018-05-20","2018-05-20","2018-05-20","2018-05-19","2018-05-20","2018-07-17","2018-04-20","N/A","N/A"]
[null,"2018-03-01","2018-04-20","2018-04-20","2018-04-20","2018-04-19","2018-04-20","2018-07-17","2018-03-20","N/A","N/A"]
[null,"2018-02-01","2018-03-20","2018-03-20","2018-03-20","2018-03-19","2018-03-20","2018-07-17","2018-02-20","N/A","N/A"]
[null,"2018-01-01","2018-02-20","2018-02-20","2018-02-20","2018-02-19","2018-02-20","2018-07-17","2018-01-20","N/A","N/A"]